[Event "2nd Asian Nations Team Cup U14 2019"]
[Site "Shenzhen"]
[Date "2019.12.25"]
[Round "8.6"]
[White "Xue, Haowen"]
[Black "Tsogtbayar, Batlut"]
[Result "1-0"]
[ECO "D17"]
[WhiteElo "1909"]
[BlackElo "1404"]
[Annotator "NA RC"]
[PlyCount "107"]
[EventDate "2019.12.19"]
[EventType "team-tourn"]
[EventCountry "CHN"]
[SourceTitle "playchess.com"]
[Source "ChessBase"]
[SourceQuality "1"]
[WhiteTeam "China"]
[BlackTeam "Mongolia"]
[WhiteTeamCountry "CHN"]
[BlackTeamCountry "MGL"]
[TimeControl "5400+30"]

{[%evp 8,107,20,26,27,0,0,-2,31,17,24,2,18,18,19,4,12,0,19,30,26,22,20,25,39,29,45,38,49,17,29,26,41,39,61,52,194,160,186,146,167,178,179,217,200,187,227,212,221,229,228,139,157,141,145,154,178,180,199,130,146,140,156,131,155,151,158,151,154,169,170,159,175,146,147,130,162,164,202,216,200,272,391,166,397,288,310,493,380,379,555,525,2050,6070,5065,29973,29976,29948,29978,29980,29980,29981]} 1. d4 {[%emt 0:00:00]} d5 {[%emt 0:00:00]} 2. c4 {[%emt 0:00:00]} c6 {[%emt 0:00:00]} 3. Nc3 {[%emt 0:00:00]} Nf6 {[%emt 0:00:29]} 4. Nf3 {[%emt 0:00:00]} dxc4 {[%emt 0:00:55]} 5. a4 {[%emt 0:00:00]} Bf5 {[%emt 0:00:38]} 6. Ne5 {[%emt 0:00:11]} Nbd7 {[%emt 0:01:47]} 7. Nxc4 {[%emt 0:00:06]} e6 {[%emt 0:01:34]} 8. g3 {[%emt 0:07:22]} Nb6 {[%emt 0:01:54] D17: Slav Defence: 5 a4 Bf5: Lines with 6 Nh4 and 6 Ne5} 9. Ne5 {[%emt 0:01:17]} Bb4 {[%emt 0:01:23]} 10. Bg2 {[%emt 0:04:09]} a5 {[%emt 0:19:56]} 11. O-O {[%emt 0:00:28]} O-O {[%emt 0:00:39]} 12. Nd3 {[%emt 0:04:15]} Nbd5 $146 {[%emt 0:13:43]} ({Predecessor:} 12... h6 13. e3 Bxd3 14. Qxd3 e5 15. Na2 exd4 16. exd4 Nxa4 {0-1 (89) Gurevich,D (2537)-Gulko,B (2618) Salt Lake City 1999}) 13. Nxb4 {[%emt 0:05:05]} axb4 {[%emt 0:02:02]} 14. Nxd5 {[%emt 0:01:07]} cxd5 {[%emt 0:00:24]} 15. Qb3 {[%emt 0:02:08]} Qb6 {[%emt 0:01:23]} 16. Bd2 {[%emt 0:01:13]} Qxd4 {[%emt 0:05:58]} 17. Qxb4 {[%emt 0:02:53]} Qxb4 {[%emt 0:01:45]} 18. Bxb4 {[%emt 0:00:34]} Rfc8 {[%emt 0:01:04]} 19. Rfc1 {[%emt 0:01:06]} h6 {[%emt 0:01:45]} 20. a5 {[%emt 0:00:56]} Ne8 {[%emt 0:01:51]} 21. Bf1 {[%emt 0:03:09]} d4 {[%emt 0:02:25]} (21... Bc2 $14) 22. Bg2 {[%emt 0:03:46]} Rcb8 {[%emt 0:03:24]} 23. Rd1 {[%emt 0:10:33]} e5 {[%emt 0:01:50]} 24. f4 {[%emt 0:00:26]} f6 {[%emt 0:03:33]} 25. fxe5 {[%emt 0:00:58]} fxe5 {[%emt 0:00:10]} 26. Rac1 {[%emt 0:03:43]} Ra6 {[%emt 0:01:16]} (26... Bg4 $16 {was worth a try.} 27. Rc5 Bxe2) 27. Rc5 {[%emt 0:01:45]} b6 {[%emt 0:01:23]} 28. Rxe5 {[%emt 0:00:49]} bxa5 {[%emt 0:00:38]} 29. Ba3 {[%emt 0:00:54]} ({Weaker is} 29. Rxf5 Rxb4 30. Bd5+ Kh7 $14) ({Don't play} 29. Rxd4 $6 axb4 30. Bd5+ (30. Rxf5 Nf6 $16) 30... Kh8) (29. Bxa5 $18 Bd7 30. Rxd4) 29... Bg6 {[%emt 0:01:30]} 30. Rxd4 {[%emt 0:00:39]} Nf6 {[%emt 0:00:25]} 31. Bf3 {[%emt 0:02:40]} a4 {[%emt 0:01:17]} 32. Kf2 {[%emt 0:01:18]} Bf7 {[%emt 0:00:42]} 33. Rb4 {[%emt 0:02:29]} ({White should try} 33. Re7 $18) 33... Rxb4 {[%emt 0:00:47]} 34. Bxb4 {[%emt 0:00:02]} Bb3 {[%emt 0:00:32]} 35. Ba3 {[%emt 0:02:15]} Ra7 {[%emt 0:00:48]} 36. Ke3 {[%emt 0:02:12]} Kf7 {[%emt 0:00:41]} 37. h3 {[%emt 0:01:36]} Be6 {[%emt 0:03:12]} 38. g4 {[%emt 0:01:17]} Nd7 {[%emt 0:01:34]} 39. Rb5 {[%emt 0:00:37]} Nf6 {[%emt 0:00:34]} 40. Rb7+ {[%emt 0:11:12]} Rxb7 {[%emt 0:00:37]} 41. Bxb7 {[%emt 0:00:02]} Nd5+ {[%emt 0:01:33]} 42. Ke4 {[%emt 0:00:21]} Nb6 {[%emt 0:00:30]} 43. Bc6 {[%emt 0:02:41]} Bb3 {[%emt 0:00:24]} 44. Kd4 {[%emt 0:00:32]} Nc8 {[%emt 0:01:36]} 45. e4 {[%emt 0:01:29]} (45. Bd5+ $142 Kg6 46. Bc6) 45... Bc2 $2 {[%emt 0:01:26]} (45... Ne7 $16) 46. e5 {[%emt 0:02:28]} Ne7 {[%emt 0:00:21]} 47. Bxe7 {[%emt 0:01:31]} Kxe7 {[%emt 0:00:20]} 48. Kc3 {[%emt 0:01:52]} Bd1 {[%emt 0:00:18]} 49. Bd5 {[%emt 0:00:58]} g6 {[%emt 0:00:51]} 50. Kd2 {[%emt 0:00:10]} Bb3 {[%emt 0:00:27]} 51. Bxb3 {[%emt 0:00:07]} axb3 {[%emt 0:00:13]} 52. Kc3 {[%emt 0:00:11]} Ke6 {[%emt 0:00:29]} 53. Kd4 {[%emt 0:00:11]} h5 {[%emt 0:00:17]} 54. g5 {[%emt 0:00:51] Kxe5+ Ke4+ Kd5+} 1-0

[Event "2nd Asian Nations Team Cup U14 2019"]
[Site "Shenzhen"]
[Date "2019.12.25"]
[Round "8.11"]
[White "Liu, Fung Ming Mathew"]
[Black "Ebrahimi Herab, Hamidreza"]
[Result "0-1"]
[ECO "C78"]
[WhiteElo "1493"]
[BlackElo "2053"]
[Annotator "NA RC"]
[PlyCount "84"]
[EventDate "2019.12.19"]
[EventType "team-tourn"]
[EventCountry "CHN"]
[SourceTitle "playchess.com"]
[Source "ChessBase"]
[SourceQuality "1"]
[WhiteTeam "Hong Kong"]
[BlackTeam "Iran"]
[WhiteTeamCountry "HKG"]
[BlackTeamCountry "IRI"]
[TimeControl "5400+30"]

{[%evp 8,80,19,20,32,32,41,9,5,6,30,23,37,-1,5,4,0,0,0,-31,12,-2,10,21,17,8,78,89,88,0,64,-27,-11,-20,-16,-65,-18,-39,0,-11,0,0,0,12,7,-22,-25,-291,32767,-62,-45,-68,-93,-75,-89,-81,-79,-106,-23,-204,-266,-964,-1073,-29985,-29989,-29989,-519,-29983,-29985,-29984,-29984,-29984,-29986,-29987,-29988]} 1. e4 {[%emt 0:00:00]} e5 {[%emt 0:00:00]} 2. Nf3 {[%emt 0:00:00]} Nc6 {[%emt 0:00:00]} 3. Bb5 {[%emt 0:00:00]} a6 {[%emt 0:00:00]} 4. Ba4 {[%emt 0:00:00]} Nf6 {[%emt 0:00:00]} 5. O-O {[%emt 0:00:02]} b5 {[%emt 0:00:05]} 6. Bb3 {[%emt 0:00:08]} Bc5 {[%emt 0:00:06]} 7. Re1 {[%emt 0:00:51]} d6 {[%emt 0:00:12]} 8. c3 {[%emt 0:00:47]} h6 {[%emt 0:00:33] C78: Ruy Lopez: Archangelsk and Möller Defences} (8... O-O 9. a4 Bg4 10. h3 Bxf3 11. Qxf3 Na5 12. Bc2 b4 13. Qd1 Qb8 14. d4 b3 15. dxc5 bxc2 16. Qxc2 {½-½ (29) Lu,S (2641)-Yu,Y (2751) Shenzhen 2017}) 9. d4 {[%emt 0:00:21]} Bb6 {[%emt 0:01:29]} 10. dxe5 {[%emt 0:02:29]} Nxe5 {[%emt 0:00:15]} 11. Nxe5 {[%emt 0:01:06]} dxe5 {[%emt 0:02:19]} 12. Qf3 $146 {[%emt 0:02:16]} ({Predecessor:} 12. Qxd8+ Kxd8 13. Be3 Bxe3 14. Rxe3 Ke7 15. f3 Bb7 16. Nd2 {½-½ (37) Toplisek,M (1242)-Centrih,A (1687) Ptuj 2017}) 12... O-O {[%emt 0:01:45]} 13. Nd2 {[%emt 0:04:47]} Be6 {[%emt 0:02:36]} 14. h3 {[%emt 0:02:50]} c5 {[%emt 0:01:01]} 15. Bxe6 {[%emt 0:00:00]} fxe6 {[%emt 0:00:42]} 16. Qg3 {[%emt 0:01:12]} c4 {[%emt 0:00:17]} (16... Nh5 $11 {keeps the balance.} 17. Qg4 (17. Qxe5 Nf4 $17) 17... Nf4) 17. Nf3 {[%emt 0:06:25]} Kh8 {[%emt 0:03:05]} 18. Kh2 {[%emt 0:00:00]} ({Inferior is} 18. Nxe5 Nh5 $19) (18. Qxe5 $16 Nd7 19. Qd6 (19. Qxe6 Nc5 $14)) 18... Nh5 {[%emt 0:04:34]} (18... Qe8 $11 19. Kg1 (19. Nxe5 Nh5 $15) 19... Rd8) 19. Qg4 {[%emt 0:05:19]} ({White should play} 19. Qg6 $14 Nf4 20. Bxf4 exf4 21. Kg1 (21. Qxe6 Bxf2 22. Red1 Qe8 $11)) 19... Qe8 {[%emt 0:05:56]} ({Much weaker is} 19... Bxf2 20. Qxh5 Rxf3 21. Bxh6 $14) 20. Rf1 {[%emt 0:03:36]} Kh7 {[%emt 0:01:55]} 21. Kg1 {[%emt 0:04:27]} Bc7 {[%emt 0:06:23]} 22. Nh2 {[%emt 0:10:15]} Nf4 {[%emt 0:07:27]} 23. Bxf4 {[%emt 0:00:00]} Rxf4 {[%emt 0:00:44]} 24. Qe2 {[%emt 0:00:00]} Bb6 {[%emt 0:01:21]} 25. Ng4 {[%emt 0:01:23]} Qg6 {[%emt 0:01:21]} 26. Rae1 {[%emt 0:00:00]} Raf8 {[%emt 0:01:05]} 27. g3 $2 {[%emt 0:06:56] [#]} (27. Kh1 $11 Qg5 28. f3) 27... Rf3 $2 {[%emt 0:03:48]} (27... Rxf2 $1 $19 {[%mdl 512]} 28. Rxf2 Bxf2+ 29. Qxf2 Rxf2 30. Kxf2 Qf7+ 31. Ke2 Qh5) 28. Kg2 {[%emt 0:02:50]} Qf7 {[%emt 0:18:06]} 29. Rd1 {[%emt 0:00:00]} h5 {[%emt 0:00:00]} 30. Ne3 $1 {[%emt 0:01:53]} g5 {[%emt 0:08:14]} 31. Nf5 {[%emt 0:05:19]} Rd3 $1 {[%emt 0:00:39]} 32. Ne3 {[%emt 0:05:20]} Rfd8 {[%emt 0:03:42]} 33. Qc2 $2 {[%emt 0:02:38] [#]} (33. b3 $11 {and White is okay.}) 33... Qg6 $1 {[%emt 0:03:33]} 34. Kf3 $2 {[%emt 0:01:56]} (34. Qe2) 34... g4+ {[%emt 0:07:04] Double Attack} 35. Ke2 {[%emt 0:08:08]} Qxe4 {[%emt 0:02:36]} 36. Qc1 {[%emt 0:02:38]} Qf3+ {[%emt 0:00:00]} (36... gxh3 $142 37. b3 Bxe3 38. f3 Bxc1+ {[%mdl 64] Discovered Attack} 39. fxe4 Rxd1 40. Rxd1 Rxd1 41. Kxd1 Bg5 42. Ke2 h2 43. Kf3 h1=Q+ 44. Kf2 Qh2+ 45. Kf3 Qd2 46. g4 h4 47. b4 h3 48. Kg3 Qg2#) 37. Ke1 {[%emt 0:00:25]} Bxe3 {[%emt 0:01:08]} 38. Rxd3 {[%emt 0:01:48]} Rxd3 {[%emt 0:00:00]} 39. fxe3 {[%emt 0:01:30]} Rxe3+ {[%emt 0:00:00]} 40. Qxe3 {[%emt 0:00:10]} Qxe3+ {[%emt 0:00:00]} 41. Kd1 {[%emt 0:00:05]} Qd3+ {[%emt 0:00:00]} 42. Ke1 {[%emt 0:00:06]} Qxg3+ {[%emt 0:00:18]} 0-1

[Event "2nd Asian Nations Team Cup U14 2019"]
[Site "Shenzhen"]
[Date "2019.12.25"]
[Round "8.12"]
[White "Khorshidi, Mohammad Javad"]
[Black "Lee, Gerent Chak Yan"]
[Result "1-0"]
[ECO "E05"]
[WhiteElo "2094"]
[BlackElo "1450"]
[Annotator "NA RC"]
[PlyCount "73"]
[EventDate "2019.12.19"]
[EventType "team-tourn"]
[EventCountry "CHN"]
[SourceTitle "playchess.com"]
[Source "ChessBase"]
[SourceQuality "1"]
[WhiteTeam "Iran"]
[BlackTeam "Hong Kong"]
[WhiteTeamCountry "IRI"]
[BlackTeamCountry "HKG"]
[TimeControl "5400+30"]

{[%evp 8,61,7,4,25,8,23,8,12,10,23,15,21,4,6,25,47,7,28,17,20,0,8,0,73,72,70,52,85,66,62,81,74,34,39,29,209,32767,32767,32767,32767,245,245,239,244,262,345,395,393,414,418,420,588,682,796,990]} 1. d4 {[%emt 0:00:00]} Nf6 {[%emt 0:00:00]} 2. c4 {[%emt 0:00:00]} e6 {[%emt 0:00:00]} 3. Nf3 {[%emt 0:00:00]} Be7 {[%emt 0:00:00]} 4. g3 {[%emt 0:00:14]} O-O {[%emt 0:00:11]} 5. Bg2 {[%emt 0:00:04]} d5 {[%emt 0:00:03]} 6. O-O {[%emt 0:00:09]} dxc4 {[%emt 0:00:24]} 7. Qc2 {[%emt 0:00:10]} a6 {[%emt 0:00:03]} 8. a4 {[%emt 0:00:08]} Bd7 {[%emt 0:00:48]} 9. Qxc4 {[%emt 0:00:14]} Bc6 {[%emt 0:00:08]} 10. Bf4 {[%emt 0:00:08]} Nbd7 {[%emt 0:01:50]} 11. Nc3 {[%emt 0:01:46]} Nd5 {[%emt 0:05:09] E05: Open Catalan: 5 Nf3 Be7} (11... Bd6 12. Bg5 h6 13. Bxf6 Nxf6 14. b4 Bd5 15. Nxd5 exd5 16. Qb3 Qe7 17. b5 Qxe2 18. Rfe1 Qc4 19. Qxc4 dxc4 20. Ne5 axb5 21. axb5 Rxa1 22. Rxa1 Bxe5 23. dxe5 {½-½ (42) Meier,G (2628)-Dominguez Perez,L (2739) chess.com INT 2018}) 12. Bd2 {[%emt 0:08:04]} Rb8 $146 {[%emt 0:08:53]} ({Predecessor:} 12... N7b6 13. Qb3 Nxc3 14. bxc3 Qd5 15. Qc2 Nc4 16. Bf4 Rac8 17. Rfe1 f5 18. e4 fxe4 19. Ne5 Nxe5 20. Bxe5 {0-1 (74) Romanishin,O (2487)-Akbarinia,S (2366) Sitges 2014}) 13. Rfc1 {[%emt 0:10:27]} Nxc3 {[%emt 0:00:00]} 14. Bxc3 {[%emt 0:03:34]} Bd5 {[%emt 0:06:38]} 15. Qd3 {[%emt 0:04:27]} c5 {[%emt 0:15:47]} (15... f5 $11 {remains equal.}) 16. e4 {[%emt 0:00:00]} Bc6 {[%emt 0:26:12]} 17. Rd1 {[%emt 0:16:07]} cxd4 {[%emt 0:00:00]} 18. Nxd4 {[%emt 0:05:22]} Ne5 {[%emt 0:07:30]} 19. Qe2 {[%emt 0:04:06]} Qc7 {[%emt 0:03:59]} 20. Qh5 {[%emt 0:03:02]} (20. f4 $5 {[%cal Rf4e5]} Nd7 21. Nxc6 Qxc6 22. a5 $16) 20... Ng6 {[%emt 0:00:00]} 21. Ba5 {[%emt 0:07:20]} Qe5 $2 {[%emt 0:00:00]} ({Black should try} 21... b6 $14 22. Nxc6 Qxc6) 22. Qxe5 {[%emt 0:00:00]} Nxe5 {[%emt 0:00:00]} 23. Bc7 {[%emt 0:00:00]} Nc4 {[%emt 0:00:00]} 24. Bxb8 {[%emt 0:00:00]} Rxb8 {[%emt 0:00:00]} 25. Nxc6 {[%emt 0:00:54]} bxc6 {[%emt 0:00:00]} 26. Bf1 {[%emt 0:01:13]} Nd6 {[%emt 0:03:33]} 27. Bxa6 {[%emt 0:02:32]} Nxe4 {[%emt 0:00:00]} 28. Bd3 {[%emt 0:03:18]} Nc5 {[%emt 0:00:00]} 29. a5 {[%emt 0:01:23]} Nxd3 {[%emt 0:00:16]} 30. Rxd3 {[%emt 0:00:00]} Kf8 {[%emt 0:00:50]} 31. a6 $18 {[%emt 0:00:43]} Ke8 {[%emt 0:00:00]} 32. a7 {[%emt 0:00:37]} Ra8 {[%emt 0:00:00]} 33. Rb3 {[%emt 0:00:10]} Bd6 {[%emt 0:00:00]} 34. Rb7 {[%emt 0:00:36]} Kd8 {[%emt 0:00:00]} 35. Rxf7 {[%emt 0:00:11]} Bc5 {[%emt 0:00:00]} 36. b4 {[%emt 0:00:49]} Bxb4 {[%emt 0:00:00]} 37. Rb1 {[%emt 0:00:18]} 1-0

[Event "2nd Asian Nations Team Cup U14 2019"]
[Site "Shenzhen"]
[Date "2019.12.25"]
[Round "8.13"]
[White "Wang, Benchi"]
[Black "Batbold, Nyamsuren"]
[Result "1-0"]
[ECO "D00"]
[WhiteElo "1747"]
[BlackElo "1963"]
[Annotator "NA RC"]
[PlyCount "109"]
[EventDate "2019.12.19"]
[EventType "team-tourn"]
[EventCountry "CHN"]
[SourceTitle "playchess.com"]
[Source "ChessBase"]
[SourceQuality "1"]
[WhiteTeam "China"]
[BlackTeam "Mongolia"]
[WhiteTeamCountry "CHN"]
[BlackTeamCountry "MGL"]
[TimeControl "5400+30"]

{[%evp 8,109,2,-12,0,-25,0,0,4,0,24,-6,-3,5,0,-10,2,-4,-9,-8,0,0,10,0,0,0,0,0,70,-12,-6,-1,6,0,21,32767,32767,250,239,229,242,282,291,297,266,262,371,32767,32767,32767,32767,32767,313,333,323,339,321,344,332,337,302,360,345,354,392,340,334,340,346,384,371,364,453,396,480,408,574,372,32767,32767,32767,32767,659,458,402,400,398,350,400,343,398,537,398,442,624,714,659,32767,32767,32767,32767,32767,29984,29963]} 1. d4 {[%emt 0:00:00]} d5 {[%emt 0:00:00]} 2. Bf4 {[%emt 0:00:00]} c5 {[%emt 0:06:14]} 3. e3 {[%emt 0:00:07]} Nc6 {[%emt 0:00:16]} 4. c3 {[%emt 0:00:17]} Nf6 {[%emt 0:00:32]} 5. Nd2 {[%emt 0:00:47]} Bf5 {[%emt 0:11:32]} (5... Qb6 6. Qb3 Nh5 7. Qxb6 axb6 8. Bc7 cxd4 9. exd4 e5 10. Bxe5 Nxe5 11. dxe5 Bc5 12. g3 O-O {1-0 (76) Aronian,L (2765)-Caruana,F (2832) London 2018}) 6. Bb5 {[%emt 0:06:27] D00: 1 d4 d5: Unusual lines} e6 {[%emt 0:05:53]} 7. Ngf3 {[%emt 0:00:45]} Qb6 {[%emt 0:00:55]} 8. Qa4 {[%emt 0:02:19]} Nd7 {[%emt 0:05:10]} 9. O-O {[%emt 0:03:53]} a6 {[%emt 0:05:48]} 10. Bxc6 {[%emt 0:00:10]} Qxc6 {[%emt 0:07:37]} 11. Qxc6 {[%emt 0:00:38]} bxc6 {[%emt 0:00:01]} 12. Rfe1 {[%emt 0:01:38]} Be7 {[%emt 0:09:25]} 13. e4 $146 {[%emt 0:03:14]} ({Predecessor:} 13. Nb3 Rc8 14. h3 f6 15. dxc5 {0-1 (30) Zach,A (2321)-Krivoborodov,E (2511) Germany 2015}) 13... Bg6 {[%emt 0:00:41]} 14. c4 {[%emt 0:02:57]} Nf6 {[%emt 0:08:18]} 15. exd5 {[%emt 0:02:07]} cxd5 {[%emt 0:00:07]} 16. Bg5 {[%emt 0:03:59]} dxc4 {[%emt 0:06:05]} 17. Nxc4 {[%emt 0:00:39]} O-O {[%emt 0:08:19]} (17... Bh5 $11) 18. Rac1 {[%emt 0:01:08]} (18. Bxf6 $1 $14 gxf6 19. d5) 18... cxd4 {[%emt 0:06:49]} 19. Nxd4 {[%emt 0:00:09]} Bc5 {[%emt 0:00:39]} 20. Bxf6 {[%emt 0:02:13]} gxf6 {[%emt 0:00:28]} 21. Nc6 {[%emt 0:00:09]} Rfc8 {[%emt 0:08:30] [#]} 22. Nb6 $1 {[%emt 0:03:43]} Bxb6 {[%emt 0:00:33]} 23. Ne7+ {[%emt 0:00:05] Double Attack} Kg7 {[%emt 0:00:43]} 24. Rxc8 {[%emt 0:00:23]} ({Much less strong is} 24. Nxc8 $6 Bd4 $18) 24... Ra7 {[%emt 0:00:36]} 25. Nxg6 {[%emt 0:00:08]} hxg6 {[%emt 0:00:12]} 26. Rd1 {[%emt 0:00:21]} e5 {[%emt 0:00:15]} (26... a5 {was necessary.} 27. b3 g5) 27. Rd6 {[%emt 0:00:35]} Bd4 {[%emt 0:00:17]} 28. b3 {[%emt 0:00:33]} a5 {[%emt 0:00:07]} 29. Rc4 {[%emt 0:00:10]} Rb7 {[%emt 0:01:34]} 30. Rd5 {[%emt 0:01:08]} Ra7 {[%emt 0:00:37]} 31. Kf1 {[%emt 0:00:15]} Kf8 {[%emt 0:00:10]} 32. Ke2 {[%emt 0:00:59]} Ke7 {[%emt 0:00:11]} 33. f3 {[%emt 0:00:25]} Ke6 {[%emt 0:00:11]} 34. Rd8 {[%emt 0:00:07]} f5 {[%emt 0:00:43]} 35. h4 {[%emt 0:00:40]} Ke7 {[%emt 0:01:23]} 36. Rh8 {[%emt 0:00:36]} Kf6 {[%emt 0:01:19]} 37. Re8 {[%emt 0:00:24]} f4 {[%emt 0:01:03]} 38. Rec8 {[%emt 0:00:38]} Rd7 {[%emt 0:00:47]} 39. Ra8 {[%emt 0:02:27]} Be3 {[%emt 0:00:12]} 40. Rc2 {[%emt 0:00:08]} Rd5 {[%emt 0:00:14]} 41. Rb8 {[%emt 0:00:42]} Kf5 {[%emt 0:00:25]} (41... Bd4 $142 42. Rc6+ Kf5) 42. b4 {[%emt 0:00:14]} axb4 {[%emt 0:02:57]} 43. Rxb4 {[%emt 0:00:11]} f6 {[%emt 0:00:03]} 44. a4 {[%emt 0:00:14]} Rd7 $2 {[%emt 0:01:58]} (44... Rd6 45. g4+ Ke6) 45. a5 {[%emt 0:00:30]} Rh7 {[%emt 0:00:11]} 46. a6 {[%emt 0:01:45]} Rxh4 {[%emt 0:00:06]} 47. Ra4 {[%emt 0:00:19]} Rh2 {[%emt 0:00:19]} 48. Kd3 {[%emt 0:00:09]} Ba7 {[%emt 0:00:13]} 49. Rc7 {[%emt 0:00:17]} Be3 {[%emt 0:00:05]} 50. Ra2 {[%emt 0:00:05]} ({Not} 50. a7 Bxa7 51. Rcxa7 (51. Raxa7 Rxg2 52. Rh7 Rf2 $18) 51... Rxg2 $18) 50... g5 {[%emt 0:00:20]} (50... Rh8 $142 51. a7 Rd8+ 52. Kc4 Ra8) 51. a7 {[%emt 0:00:05]} Bxa7 {[%emt 0:00:03]} 52. Rcxa7 {[%emt 0:00:03]} g4 {[%emt 0:00:06]} 53. fxg4+ {[%emt 0:00:04]} Kxg4 {[%emt 0:00:04]} 54. Ke4 {[%emt 0:00:08]} Rh5 {[%emt 0:02:05]} 55. Rf7 {[%emt 0:00:28]} 1-0

[Event "2nd Asian Nations Team Cup U14 2019"]
[Site "Shenzhen"]
[Date "2019.12.25"]
[Round "8.14"]
[White "Erkhes, Bayartnar"]
[Black "Zhang, Yuanxiao"]
[Result "1-0"]
[ECO "C87"]
[WhiteElo "1937"]
[BlackElo "1545"]
[Annotator "NA RC"]
[PlyCount "73"]
[EventDate "2019.12.19"]
[EventType "team-tourn"]
[EventCountry "CHN"]
[SourceTitle "playchess.com"]
[Source "ChessBase"]
[SourceQuality "1"]
[WhiteTeam "Mongolia"]
[BlackTeam "China"]
[WhiteTeamCountry "MGL"]
[BlackTeamCountry "CHN"]
[TimeControl "5400+30"]

{[%evp 8,73,28,27,31,15,51,23,33,22,33,12,48,45,62,56,64,65,78,93,81,48,69,48,61,50,41,10,50,2,6,25,27,0,19,4,0,16,0,3,153,160,220,251,406,423,465,478,468,559,514,593,29985,29990,29994,29995,29995,29994,29994,29989,29988,29993,29994,29993,29993,29993,29996,29997]} 1. e4 {[%emt 0:00:00]} e5 {[%emt 0:00:00]} 2. Nf3 {[%emt 0:00:00]} Nc6 {[%emt 0:00:00]} 3. Bb5 {[%emt 0:00:00]} Nf6 {[%emt 0:00:00]} 4. d3 {[%emt 0:00:20]} d6 {[%emt 0:00:15]} 5. O-O {[%emt 0:00:40]} Be7 {[%emt 0:00:17]} 6. Re1 {[%emt 0:00:33]} O-O {[%emt 0:00:18]} 7. c3 {[%emt 0:00:09]} a6 {[%emt 0:01:20]} 8. Ba4 {[%emt 0:00:07]} b5 {[%emt 0:00:15]} 9. Bc2 {[%emt 0:00:03]} Bg4 {[%emt 0:00:55]} 10. Nbd2 {[%emt 0:01:42]} Re8 {[%emt 0:00:33] C87: Closed Ruy Lopez: Steinitz-type lines after 6 Re1 d6} (10... d5 11. h3 Bh5 12. Qe2 dxe4 13. Nxe4 Bg6 14. Nh4 Qd7 15. Nxg6 hxg6 16. Ng5 Rad8 17. g3 Bd6 18. a4 Ne7 19. axb5 axb5 {1-0 (31) Muzychuk,A (2549)-Batsiashvili,N (2500) Germany 2015}) 11. h3 {[%emt 0:00:15]} Bh5 {[%emt 0:00:40]} 12. Nf1 {[%emt 0:00:13]} Bf8 {[%emt 0:01:56]} 13. Ng3 {[%emt 0:00:06]} Bg6 {[%emt 0:00:05]} 14. d4 {[%emt 0:00:18]} exd4 $146 {[%emt 0:02:38]} ({Predecessor:} 14... d5 15. dxe5 Nxe5 16. Nxe5 Rxe5 17. f4 Bc5+ 18. Be3 Bxe3+ 19. Rxe3 Rxe4 20. Nxe4 Bxe4 21. Bxe4 Nxe4 {1-0 (52) Maciulaityte,B (1766)-Jaskunaite,A (1135) Lithuania 2018}) 15. cxd4 {[%emt 0:00:21]} Na5 {[%emt 0:02:10]} 16. Nh4 {[%emt 0:03:49]} c5 {[%emt 0:01:36]} 17. Nhf5 {[%emt 0:09:26]} Nc6 {[%emt 0:04:54]} 18. Bg5 {[%emt 0:02:09]} (18. d5 $14 Ne5 19. b3) 18... Bxf5 {[%emt 0:02:24]} 19. Nxf5 {[%emt 0:03:16]} h6 {[%emt 0:01:55]} (19... g6 $5 {[%cal Rg6f5]}) 20. Bh4 {[%emt 0:04:49]} g6 {[%emt 0:02:36]} 21. e5 {[%emt 0:07:58]} dxe5 {[%emt 0:01:03]} 22. dxe5 {[%emt 0:00:06]} Qxd1 {[%emt 0:00:22]} 23. Raxd1 {[%emt 0:00:03]} Nh5 $2 {[%emt 0:00:36]} ({Black should play} 23... gxf5 $11 24. exf6 (24. Bxf6 Bg7 $11) 24... Rxe1+ 25. Rxe1 Nd4) 24. Be4 {[%emt 0:02:44]} Rac8 {[%emt 0:02:07]} (24... Rec8 $16) 25. Nd6 {[%emt 0:00:13]} Bxd6 {[%emt 0:00:28]} (25... Nd4 {was worth a try.} 26. b4 (26. Nxe8 Rxe8 27. f3 a5 $18) 26... g5) 26. exd6 {[%emt 0:00:04]} Ne5 {[%emt 0:01:55]} 27. Bb7 {[%emt 0:04:33] Double Attack} ({Not} 27. d7 Nxd7 28. Rxd7 g5 $14) 27... Rb8 {[%emt 0:00:26] [#]} 28. Rxe5 $1 {[%emt 0:00:30] Promotion} Rxe5 {[%emt 0:01:28]} 29. d7 {[%emt 0:00:03]} f5 {[%emt 0:00:30]} (29... Rf8 $18 30. d8=Q Rxd8 31. Bxd8 Re2 32. Bxa6 Rxb2) 30. Bc8 {[%emt 0:00:07]} g5 {[%emt 0:03:12]} 31. d8=Q+ {[%emt 0:00:05]} Kh7 {[%emt 0:00:51]} 32. Qc7+ {[%emt 0:00:11]} Ng7 {[%emt 0:01:16]} 33. Qxb8 {[%emt 0:00:13]} Re7 {[%emt 0:00:24] [#]} 34. Qd6 $1 {[%emt 0:00:12]} Re8 {[%emt 0:00:42]} 35. Bd7 {[%emt 0:00:12]} Re4 {[%emt 0:00:22]} 36. Qf6 {[%emt 0:00:50]} Rxh4 {[%emt 0:02:41]} 37. Bxf5+ {[%emt 0:02:32]} 1-0